Cogmind - Beta 11 @@@ ROGUE MODE // 2022.03.27 @ 01:36:59 Player: Dytto Result: Destroyed by G-47 Trooper with Particle Gun Performance ------------- Evolutions (0) 0 Regions Visited (2) 400 Robots Destroyed (5) 25 Value Destroyed (207) 207 Prototype IDs (0) 0 Alien Tech Used (0) 0 Bonus (0) 0 TOTAL SCORE: 632 Bonus ------- None Cogmind --------- Core Integrity 0/250 Matter 300/300 Energy 100/100 System Corruption 0% Temperature Cool (9) Movement Core (50) Location -10/Mines Parts ------- > --- POWER (1) -------- (None) > --- PROPULSION (2) --- (None) > --- UTILITY (2) ------ Targeting Computer Core Shielding > --- WEAPON (2) ------- Mining Claw > --- INVENTORY (5) ---- Targeting Computer ECM Suite Weapon Shielding Small Laser Peak State ------------ > --- POWER ------------ Ion Engine > --- PROPULSION ------- Compact Wheel Compact Wheel > --- UTILITY ---------- Targeting Computer Core Shielding > --- WEAPON ----------- Small Laser Particle Gun > --- INVENTORY -------- Small Laser [Rating: 8] Favorites ----------- Power Ion Engine Engine Ion Engine Propulsion Compact Wheel Leg Aluminum Leg Wheel Compact Wheel Utility Targeting Computer Processor Targeting Computer Protection Core Shielding Weapon Small Laser Energy Gun Small Laser Ballistic Gun Assault Rifle Special Weapon Mining Laser Slashing Weapon Mining Claw Build | -11 -10 -10 ------- Run | Scr Mat Min Slots Evolved . | . . . Power . | . . . Propulsion . | . . . Utility . | . . . Weapon . | . . . Parts Attached 17 | 5 7 5 Power 3 | 1 1 1 Engine 3 | 1 1 1 Core . | . . . Reactor . | . . . Propulsion 4 | 2 2 . Treads . | . . . Leg 2 | 2 . . Wheel 2 | . 2 . Hover . | . . . Flight . | . . . Utility 2 | . 2 . Device . | . . . Storage . | . . . Processor 1 | . 1 . Hackware . | . . . Protection 1 | . 1 . Artifact . | . . . Weapon 8 | 2 2 4 Energy Gun 5 | 1 2 2 Energy Cannon . | . . . Ballistic Gun 1 | 1 . . Ballistic Cannon . | . . . Launcher . | . . . Special Weapon 1 | . . 1 Impact Weapon . | . . . Slashing Weapon 1 | . . 1 Piercing Weapon . | . . . Special Melee Weapon . | . . . Unidentified Prototypes . | . . . Parts Lost 11 | . 4 7 Power 3 | . 1 2 Propulsion 4 | . 2 2 Utility . | . . . Weapon 4 | . 1 3 Highest Loss Streak 4 | . 4 4 To Critical Strikes . | . . . Average Slot Usage (%) 89 | . 83 93 Engine 13 | . 14 13 Leg 3 | . 9 . Wheel 21 | . 17 23 Processor 12 | . 10 14 Protection 9 | . 3 14 Energy Gun 19 | . 23 16 Ballistic Gun 1 | . 4 . Slashing Weapon 6 | . . 10 Naked Turns . | . . . Heaviest Build 11 | 9 9 11 Greatest Support 32 | 20 32 32 Greatest Overweight (x) 2 | 1 1 2 Average Overweight (x) . | . . . Largest Inventory Capacity 5 | 5 5 5 Average Capacity 5 | 5 5 5 Most Carried 5 | 4 5 5 Average Carried 3 | 2 3 4 Final Capacity 5 | 5 5 5 Final Carried 4 | 4 3 4 Class Distribution -------------------- 100% | Mutant Dominant Class ---------------- Mutant | -10/Materials Mutant | -10/Mines Resources | -11 -10 -10 ----------- Run | Scr Mat Min Matter Collected 375 | 250 55 70 Remotely . | . . . Salvage Created 257 | . 150 107 Parts 12 | . 6 6 Haulers Intercepted . | . . . Recyclers Shooed . | . . . Parts Field Recycled . | . . . Retrieved Matter . | . . . Parts Self-Destructed . | . . . Prevented . | . . . Kills | -11 -10 -10 ------- Run | Scr Mat Min Combat Hostiles Destroyed 4 | . 2 2 Guns 3 | . 1 2 AOE 1 | . 1 . Classes Destroyed 3 | . 2 1 Recycler 1 | . 1 . Grunt 2 | . 2 . Sentry 2 | . . 2 Best Kill Streak 2 | . 2 1 Combat Bots Only 1 | . 1 1 Max Kills in Single Turn 2 | . 2 1 Gunslinging . | . . . Exploded 1 | . 1 . Melee . | . . . Uniques/NPCs Destroyed . | . . . Combat | -11 -10 -10 -------- Run | Scr Mat Min Damage Taken 1060 | . 534 526 Core 254 | . 129 125 Absorbed by Shields . | . . . Redirected to Shielding 27 | . . 27 Regen/Repaired (Parts) 39 | . 39 . Core Remaining (%) 100 | 100 . . Volleys Fired 30 | . 15 15 Largest 2 | . 2 2 Hottest 105 | . 70 105 Shots Fired 51 | . 30 21 Gun 49 | . 30 19 Cannon . | . . . Launcher . | . . . Special 2 | . . 2 Kinetic 15 | . 15 . Thermal 36 | . 15 21 Explosive . | . . . Electromagnetic . | . . . Robot Hit Streak 9 | . 4 9 Robot Miss Streak 3 | . 3 3 Penetration Max . | . . . Secondary Targets . | . . . Shots Hit Robots 32 | . 16 16 Core Hits 10 | . 6 4 Critical Kills . | . . . Critical Parts Destroyed . | . . . Critical Strikes . | . . . Melee Attacks 3 | . . 3 Impact . | . . . Slashing 3 | . . 3 Piercing . | . . . Sneak Attacks 1 | . . 1 Combat Hostiles . | . . . Follow-up Attacks . | . . . Damage Inflicted 533 | . 329 204 Guns 354 | . 198 156 Cannons . | . . . Explosions 131 | . 131 . Melee 24 | . . 24 Ramming . | . . . Kinetic 134 | . 134 . Thermal 244 | . 64 180 Explosive 131 | . 131 . Electromagnetic . | . . . Impact . | . . . Slashing 24 | . . 24 Piercing . | . . . Highest Corruption . | . . . Average Corruption . | . . . Corruption Purged . | . . . Corruption Blocked . | . . . Overload Shots . | . . . Overflow Damage 98 | . 98 . Projectiles . | . . . Explosions 98 | . 98 . Melee . | . . . Knockbacks . | . . . Impact . | . . . Kinetic . | . . . Secondary . | . . . Self-Inflicted Damage 185 | . 185 . Shots 2 | . 2 . Rammed . | . . . Targets Rammed . | . . . Kicked . | . . . Crushed . | . . . Highest Temperature 72 | . 72 70 Average Temperature 23 | . 22 25 Received Heat Transfer 444 | . 198 246 Siege Activations . | . . . Robots Corrupted . | . . . Combat Hostiles . | . . . Parts Fried . | . . . Impact Corruptions . | . . . Robots Melted . | . . . Combat Hostiles . | . . . Parts Melted 1 | . . 1 Heat Transferred 632 | . 185 447 Parts Sabotaged . | . . . Parts Stolen . | . . . Parts Stripped . | . . . Power Chain Reactions . | . . . Missiles Intercepted . | . . . Alert | -11 -10 -10 ------- Run | Scr Mat Min Peak Influence 207 | . 207 115 Initial 80 | . . 80 Average 93 | . 129 85 Maximum Alert Level 1 | . 1 . Low Security (%) 96 | 100 90 100 Level 1 3 | . 9 . Level 2 . | . . . Level 3 . | . . . Level 4 . | . . . Level 5 . | . . . High Security . | . . . Max Security . | . . . Squads Dispatched 2 | . 2 . Investigation . | . . . Extermination . | . . . Reinforcement 2 | . 2 . Assault . | . . . Garrison . | . . . Intercept . | . . . Searches Triggered . | . . . Construction Impeded . | . . . Haulers Reinforced . | . . . Active Scanning Responses . | . . . Cargo Convoy Interrupts . | . . . Stealth | -11 -10 -10 --------- Run | Scr Mat Min Distress Signals 1 | . 1 . Communications Jammed . | . . . Distress Signals . | . . . Times Spotted 15 | . 5 10 Peak Tracking Total 4 | . 4 3 Tactical Retreats 2 | . . 2 Traps | -11 -10 -10 ------- Run | Scr Mat Min Traps Triggered . | . . . Indirectly . | . . . Trap Hack Attempts . | . . . Triggered . | . . . Disarmed . | . . . Reprogrammed . | . . . Reused . | . . . Traps Extracted . | . . . Installed . | . . . Triggered . | . . . Machines | -11 -10 -10 ---------- Run | Scr Mat Min Machines Disabled 3 | . 2 1 Max in Single Turn 1 | . 1 1 Machines Sabotaged . | . . . Garrisons Compromised . | . . . Overloaded Fab Kills . | . . . Hacking | -11 -10 -10 --------- Run | Scr Mat Min Machines Accessed 3 | . 3 . Terminals 2 | . 2 . Fabricators . | . . . Repair Stations 1 | . 1 . Recycling Units . | . . . Scanalyzers . | . . . Garrison Access . | . . . Total Hacks 11 | . 11 . Successful 8 | . 8 . Failed 3 | . 3 . Catastrophic . | . . . Database Lockouts . | . . . Manual 2 | . 2 . Terminals 7 | . 7 . Fabricators . | . . . Repair Stations 4 | . 4 . Recycling Units . | . . . Scanalyzers . | . . . Garrison Access . | . . . Terminal Hacks 6 | . 6 . Record 6 | . 6 . Fabricator Hacks . | . . . Repair Station Hacks 2 | . 2 . Scan Component 1 | . 1 . Repair 1 | . 1 . Recycling Unit Hacks . | . . . Scanalyzer . | . . . Garrison Access Hacks . | . . . Unauthorized Hacks . | . . . Terminals . | . . . Fabricators . | . . . Repair Stations . | . . . Recycling Units . | . . . Scanalyzers . | . . . Garrison Access . | . . . Data Cores Recovered . | . . . Used . | . . . Hacking Detections 2 | . 2 . Full Trace Events . | . . . Feedback Events . | . . . Feedback Blocked . | . . . Robot Schematics Acquired . | . . . Robots Built . | . . . Authchips . | . . . Time . | . . . Total Robot Build Rating . | . . . Part Schematics Acquired . | . . . Parts Built . | . . . Authchips . | . . . Time . | . . . Total Part Build Rating . | . . . Parts Repaired 1 | . 1 . Time 16 | . 16 . Parts Recycled . | . . . Recycled Matter . | . . . Retrieved Matter . | . . . Retrieved Components . | . . . Parts Scanalyzed . | . . . Part Schematics Acquired . | . . . Parts Damaged . | . . . Bothacking | -11 -10 -10 ------------ Run | Scr Mat Min Used RIF Installer . | . . . Robots Hacked . | . . . Non-combat . | . . . Combat . | . . . Robot Hacks Applied . | . . . Relay Couplers Released . | . . . Fabnet Peak Effective % . | . . . Robots Rewired . | . . . Allies Hacked . | . . . Hacks Repelled . | . . . Allies | -11 -10 -10 -------- Run | Scr Mat Min Total Allies . | . . . Largest Group . | . . . Highest-Rated Group . | . . . Highest-Rated Ally . | . . . Total Orders . | . . . Ally Attacks . | . . . Total Damage . | . . . Kills . | . . . Allies Corrupted . | . . . Allies Melted . | . . . Intel | -11 -10 -10 ------- Run | Scr Mat Min Robot Analysis Total . | . . . Derelict Logs Recovered 1 | . . 1 Drone Launches . | . . . Drone Recoveries . | . . . Exploration | -11 -10 -10 ------------- Run | Scr Mat Min Turns Passed 1022 | 95 373 554 Spaces Moved 756 | 50 288 418 Core 33 | 17 12 4 Treads . | . . . Legs 95 | 33 62 . Wheels 628 | . 214 414 Hover . | . . . Flight . | . . . Fastest Speed 50 | 50 50 50 Average Speed 101 | 102 103 100 Slowest Speed 150 | 120 120 150 Overloaded Moves . | . . . Propulsion Burnouts . | . . . Robots Hopped . | . . . Cave-ins Triggered . | . . . Exploration Rate (%) 36 | 5 52 51 Regions Visited 2 Branch Regions 1 Pre-discovered Areas . | . . . Known Exits Taken . | . . . Unknown Exits Taken 2 | 1 1 . Scrap Searched 1 | . . 1 Spaces Dug . | . . . Terrain Destroyed 53 | . 52 1 Melee . | . . . Projectile 1 | . . 1 AOE 52 | . 52 . Terrain Rammed . | . . . Walls Destroyed . | . . . Machines Disabled . | . . . Actions | -11 -10 -10 --------- Run | Scr Mat Min Total 947 | 92 331 524 Wait 130 | 33 20 77 Move 754 | 49 287 418 Hop . | . . . Pick Up 11 | 5 2 4 Fast Attach 8 | 4 3 1 Attach 7 | 1 3 3 Detach 1 | . . 1 Swap 2 | . 1 1 Drop 1 | . . 1 Fire 30 | . 15 15 Melee 3 | . . 3 Ram . | . . . Kick . | . . . Crush . | . . . Escape Stasis . | . . . Rewire . | . . . Trap . | . . . Miscellaneous . | . . . Route ------- -11/Scrapyard -10/Materials (discovered 2 exits: [*Mat] / [*Min]) -10/Mines History --------- Turn | Location | Event 8 | -11/Scrapyard | Discovered new exit (range 16) 96 | -11/Scrapyard | Entered Materials 228 | -10/Materials | Core integrity fell below 50% 252 | -10/Materials | Lost 4 parts (1p2n1w) 299 | -10/Materials | Discovered new exit (range 12) 315 | -10/Materials | Build established: Mutant 448 | -10/Materials | Repaired Particle Gun 454 | -10/Materials | Discovered new exit (range 15) 469 | -10/Materials | Entered Mines 527 | -10/Mines | Learned Materials non-interactive machine intel 930 | -10/Mines | Core integrity fell below 20% 1023 | -10/Mines | Destroyed by G-47 Trooper with Particle Gun Last Messages --------------- 00625_ Acquired Mining Laser. 00632_ Acquired 10 matter. 00634_ K-01 Serf collects debris. 00749_ Searching scrap... 00749_ Found Mining Laser. 00749_ Found Lgt. Treads. 00749_ Found ECM Suite. 00749_ Found Hover Unit. 00749_ Found 22 Matter. 00752_ Dropped Sml. Laser. 00753_ Acquired ECM Suite. 00793_ K-01 Serf collects debris. 00868_ Core Extractor disabled. 00869_ Com. Wheel destroyed. 00936_ Sneak attack on T-07 Excavator. 00936_ T-07 Excavator Wheel ripped off. 00991_ Particle Gun destroyed. 01011_ Mining Laser destroyed. 01014_ Com. Wheel destroyed. 01020_ Ion Engine destroyed. Map ----- +----------------------------------------------------+ | | | | | | | | | | | | | | | | | | | | | | | | | | | | | | | | | | | | | | | ????????????????????????????????? | | ?##########?????????????????????? | | ##! ## ##????????????????????? | | #" [ # #????????????????####? | | # + #???????????????## #? | | # + ##?????????????## #? | | #" ! #[[@g ##????????????# #? | | ##| ##% % ###########?## ## | | ?#### ! g g #?# # | | ????# ;## ### | | ????## #### ####### ## | | ?????# #??####?????# | | ?????# #??????????## # | | ?????# #??????????# ###### | | ?????# #?????????# ## ##????# | | ?????# ########## #### #?????# | | ?????# ## ##???# #?????# | | ?????# ###?????# #?????# | | ?????######### #???????# ####??# | | ?????????????# #???????# #??# | | ?????????????# #???????### #??# | | ?????????????# #?????????# #??# | | ????????????## ##?####???# ##?# | | ????????????# ### ##### ### | | ????????????# ## | | ????????????# | | ????????????# ## | | ????????????## ## | | ?????????????# #### # | | ??????????#### ### ##??## | | ?????????## #?## #????## | +----------------------------------------------------+ Best States ------------- Heat Dissipation 25 Energy Generation 10 Energy Capacity 250 Matter Stores 300 Matter Capacity 300 Sight Range 16 Terrain Scan Density 10 Core Shielding 20 Evasion (%) 55 Targeting Accuracy 5 Item Schematics ----------------- None Robot Schematics ------------------ None Fabricated ------------ Nothing Alien Tech Used ----------------- None Achievements -------------- None Challenges ------------ None Game ------ Seed SapperGyrokineticCharger Manual? 0 Play Time 00:09:20 Cumulative 16.6 hours Start 2022.03.25 @ 03:43:09 End 2022.03.27 @ 01:36:59 Sessions 3 Manual Loads 0 Difficulty Rogue Special Mode None Game No. 61 Rogue 25 Adventurer 36 Explorer 0 Win Type - Total 0 Types 0/0/0/0/0/0/0/0/0 Lore% 14 Gallery% 20 Achievement% 15 Wizard Run 0 Options --------- ASCII 0 Keyboard 1 Movement Numpad Keybinds 0 Fullscreen 2 Font 18/X11Bold Map View 76x50 Tactical HUD 1 Map Filters NONE Filters NONE Steam 1 RUN: 41092499-9b5d-4227-aa36-da44d1ecc143